fUSD/lending_fUSD_20251212
["ID","MTS","AMOUNT","RATE_DAILY","PERIOD"]
[398344614,1765538123644,-500.0,0.00041643,30]
[398344615,1765538123653,-977.53,0.00041643,30]
[398344616,1765538123663,-799.32,0.00041643,30]
[398344617,1765538123672,-500.0,0.00041643,30]
[398344618,1765538123682,-1062.18,0.00041643,30]
[398344619,1765538123691,-882.68,0.00041643,30]
[398344620,1765538123700,-502.48,0.00041643,30]
[398344621,1765538123709,-472.64313366,0.00041643,30]
[398344622,1765538123719,-907.2,0.00041643,30]
[398344623,1765538123728,-1677.04,0.00041643,30]
[398344624,1765538123738,-786.93,0.00041643,30]
[398344625,1765538123747,-566.21,0.00041643,30]
[398344626,1765538123757,-1523.05,0.00041643,30]
[398344627,1765538123767,-500.0,0.00041643,30]
[398344628,1765538123777,-623.75,0.00041643,30]
[398344629,1765538123787,-646.21,0.00041643,30]
[398344630,1765538123796,-500.0,0.00041643,30]
[398344631,1765538123806,-850.56,0.00041643,30]
[398344632,1765538123816,-506.59,0.00041643,30]
[398344633,1765538123826,-2457.1,0.00041643,30]
[398344634,1765538123835,-1824.58,0.00041643,30]
[398344635,1765538123845,-593.38,0.00041643,30]
[398344636,1765538123855,-500.0,0.00041643,30]
[398344637,1765538123865,-2498.97,0.00041643,30]
[398344638,1765538123875,-937.73,0.00041643,30]
[398344639,1765538123888,-500.0,0.00041643,30]
[398344640,1765538123898,-7728.61,0.00041643,30]
[398344641,1765538123908,-500.0,0.00041643,30]
[398344642,1765538123918,-500.0,0.00041643,30]
[398344643,1765538123929,-521.3,0.00041643,30]
[398344644,1765538123940,-5162.44,0.00041643,30]
[398344645,1765538123950,-4512.65,0.00041643,30]
[398344646,1765538123960,-2045.54,0.00041643,30]
[398344647,1765538123970,-2044.49,0.00041643,30]
[398344648,1765538123980,-500.0,0.00041643,30]
[398344649,1765538123990,-803.09,0.00041643,30]
[398344650,1765538124000,-880.62,0.00041643,30]
[398344651,1765538124010,-1055.54,0.00041643,30]
[398344652,1765538124020,-500.0,0.00041643,30]
[398344653,1765538124030,-1170.58,0.00041643,30]
[398344654,1765538124040,-2563.76,0.00041643,30]
[398344655,1765538124051,-500.0,0.00041643,30]
[398344656,1765538124061,-3132.56,0.00041643,30]
[398344657,1765538124072,-647.8,0.00041643,30]
[398344658,1765538124082,-920.56,0.00041643,30]
[398344659,1765538124092,-1267.04,0.00041643,30]
[398344660,1765538124102,-1034.08,0.00041643,30]
[398344661,1765538124111,-500.0,0.00041643,30]
[398344662,1765538124121,-636.17,0.00041643,30]
[398344663,1765538124131,-534.23,0.00041643,30]
[398344664,1765538124141,-9205.7,0.00041643,30]
[398344665,1765538124151,-2487.95,0.00041643,14]
[398344666,1765538124161,-500.0,0.00041643,30]
[398344667,1765538124171,-500.0,0.00041643,30]
[398344668,1765538124181,-852.0,0.00041643,30]
[398344669,1765538124191,-1627.24,0.00041643,30]
[398344670,1765538124202,-9937.58,0.00041643,30]
[398344671,1765538124211,-1228.02,0.00041643,30]
[398344672,1765538124221,-727.84,0.00041643,30]
[398344673,1765538124231,-709.82,0.00041643,30]
[398344674,1765538124241,-2584.59,0.00041643,30]
[398344675,1765538124251,-3111.31,0.00041643,30]
[398344676,1765538124261,-938.28,0.00041643,30]
[398344677,1765538124271,-724.94,0.00041643,30]
[398344678,1765538124281,-2254.56,0.00041643,30]
[398344679,1765538124291,-922.78,0.00041643,30]
[398344680,1765538124300,-899.02,0.00041643,30]
[398344681,1765538124310,-500.0,0.00041643,30]
[398344682,1765538124320,-730.51,0.00041643,30]
[398344683,1765538124330,-670.8,0.00041643,30]
[398344684,1765538124339,-890.92,0.00041643,30]
[398344685,1765538124349,-1306.66,0.00041643,30]
[398344686,1765538124358,-500.0,0.00041643,30]
[398344687,1765538124368,-500.0,0.00041643,30]
[398344688,1765538124377,-949.39,0.00041643,30]
[398344689,1765538124387,-1193.64,0.00041643,30]
[398344690,1765538124397,-667.64,0.00041643,30]
[398344691,1765538124407,-500.0,0.00041643,30]
[398344692,1765538124416,-1105.53,0.00041643,30]
[398344693,1765538124425,-500.0,0.00041643,30]
[398344694,1765538124435,-1566.37,0.00041643,30]
[398344695,1765538124445,-691.31,0.00041643,30]
[398344696,1765538124454,-986.5,0.00041643,30]
[398344697,1765538124463,-2660.16,0.00041643,30]
[398344698,1765538124473,-500.0,0.00041643,30]
[398344699,1765538124483,-677.72,0.00041643,30]
[398344700,1765538124492,-1062.51,0.00041643,30]
[398344701,1765538124501,-1023.2,0.00041643,30]
[398344702,1765538124511,-765.14,0.00041643,30]
[398344703,1765538124520,-2249.34,0.00041643,30]
[398344704,1765538124530,-541.12,0.00041643,30]
[398344705,1765538124540,-641.4,0.00041643,30]
[398344706,1765538124557,-2149.98,0.00041643,30]
[398344707,1765538124567,-1066.93,0.00041643,30]
[398344708,1765538124576,-1794.3,0.00041643,30]
[398344709,1765538124586,-500.0,0.00041643,30]
[398344710,1765538124595,-6024.98,0.00041643,30]
[398344711,1765538124605,-500.0,0.00041643,30]
[398344712,1765538124614,-652.45,0.00041643,30]
[398344713,1765538124624,-584.74,0.00041643,30]
[398344714,1765538124633,-500.0,0.00041643,30]
[398344715,1765538124643,-500.0,0.00041643,30]
[398344716,1765538124653,-1595.92,0.00041643,30]
[398344717,1765538124662,-920.72,0.00041643,30]
[398344718,1765538124671,-1243.86,0.00041643,30]
[398344719,1765538124680,-616.65,0.00041643,30]
[398344720,1765538124690,-3185.29,0.00041643,30]
[398344721,1765538124700,-1899.74,0.00041643,30]
[398344722,1765538124709,-767.47,0.00041643,30]
[398344723,1765538124719,-3636.79,0.00041643,30]
[398344724,1765538124729,-1218.06,0.00041643,30]
[398344725,1765538124738,-1283.24,0.00041643,30]
[398344726,1765538124748,-263.1996791,0.00041643,30]
[398344727,1765538124757,-500.0,0.00041643,30]
[398344728,1765538124766,-3032.18,0.00041643,30]
[398344729,1765538124776,-500.0,0.00041643,30]
[398344730,1765538124785,-616.0,0.00041643,30]
[398344731,1765538124795,-1329.42,0.00041643,30]
[398344732,1765538124804,-638.79,0.00041643,30]
[398344733,1765538124814,-500.0,0.00041643,30]
[398344734,1765538124823,-950.53,0.00041643,30]
[398344735,1765538124832,-664.16,0.00041643,30]
[398344736,1765538124842,-1066.97,0.00041643,30]
[398344737,1765538124851,-599.13,0.00041643,30]
[398344738,1765538124860,-500.0,0.00041643,30]
[398344739,1765538124869,-1433.51,0.00041643,30]
[398344740,1765538124879,-6840.01,0.00041643,30]
[398344741,1765538124893,-2849.13,0.00041643,30]
[398344742,1765538124903,-500.0,0.00041643,30]
[398344743,1765538124912,-642.56,0.00041643,30]
[398344744,1765538124923,-500.0,0.00041643,30]
[398344745,1765538124933,-2147.05,0.00041643,30]
[398344746,1765538124943,-6708.51,0.00041643,30]
[398344747,1765538124952,-500.0,0.00041643,30]
[398344748,1765538124963,-1746.8,0.00041643,30]
[398344749,1765538124973,-1135.94,0.00041643,30]
[398344750,1765538124984,-500.0,0.00041643,30]
[398344751,1765538124994,-1293.36,0.00041643,30]
[398344752,1765538125004,-500.0,0.00041643,30]
[398344753,1765538125013,-500.0,0.00041643,30]
[398344754,1765538125022,-1510.63,0.00041643,30]
[398344755,1765538125032,-500.0,0.00041643,30]
[398344756,1765538125425,-911.19,0.00041643,30]
[398344757,1765538125440,-2130.63,0.00041643,30]
[398344758,1765538125450,-500.0,0.00041643,30]
[398344759,1765538125459,-1011.94,0.00041643,30]
[398344760,1765538125469,-1929.57,0.00041643,30]
[398344761,1765538125479,-657.48,0.00041643,30]
[398344762,1765538125489,-1120.09,0.00041643,30]
[398344763,1765538125502,-732.14,0.00041643,30]
[398344764,1765538125512,-4030.69,0.00041643,30]
[398344765,1765538125522,-500.0,0.00041643,30]
[398344766,1765538125531,-995.54,0.00041643,30]
[398344767,1765538125541,-1083.81,0.00041643,30]
[398344768,1765538125550,-726.94,0.00041643,30]
[398344769,1765538125560,-3238.19,0.00041643,30]
[398344770,1765538125569,-2367.27,0.00041643,30]
[398344771,1765538125579,-608.27,0.00041643,30]
[398344772,1765538125589,-500.0,0.00041643,30]
[398344773,1765538125598,-500.0,0.00041643,30]
[398344774,1765538125608,-583.32,0.00041643,30]
[398344775,1765538125618,-500.0,0.00041643,30]
[398344776,1765538125628,-625.74,0.00041643,30]
[398344777,1765538125638,-500.0,0.00041643,30]
[398344778,1765538125647,-500.0,0.00041643,30]
[398344779,1765538125656,-2843.71,0.00041643,30]
[398344780,1765538125666,-1329.63,0.00041643,30]
[398344781,1765538125675,-500.0,0.00041643,30]
[398344782,1765538125684,-605.17,0.00041643,30]
[398344783,1765538125694,-610.47,0.00041643,30]
[398344784,1765538125703,-677.17,0.00041643,30]
[398344785,1765538125713,-1219.89,0.00041643,30]
[398344786,1765538125722,-1003.5,0.00041643,30]
[398344787,1765538125731,-658.88,0.00041643,30]
[398344788,1765538125741,-621.26,0.00041643,30]
[398344789,1765538125750,-500.0,0.00041643,30]
[398344790,1765538125760,-2089.28,0.00041643,30]
[398344791,1765538125769,-500.0,0.00041643,30]
[398344792,1765538125779,-500.0,0.00041643,30]
[398344793,1765538125788,-777.33,0.00041643,30]
[398344794,1765538125797,-506.96,0.00041643,30]
[398344795,1765538125807,-600.44,0.00041643,30]
[398344796,1765538125817,-610.54,0.00041643,30]
[398344797,1765538125826,-557.42,0.00041643,30]
[398344798,1765538125836,-500.0,0.00041643,30]
[398344799,1765538125846,-500.0,0.00041643,30]
[398344800,1765538125855,-516.74,0.00041643,30]
[398344801,1765538125865,-500.0,0.00041643,15]
[398344802,1765538125875,-759.14,0.00041643,30]
[398344803,1765538125888,-571.0,0.00041643,30]
[398344804,1765538125898,-1161.86,0.00041643,30]
[398344805,1765538125908,-588.85,0.00041643,30]
[398344806,1765538125918,-1044.6,0.00041643,30]
[398344807,1765538125927,-2199.62,0.00041643,30]
[398344808,1765538125937,-503.79,0.00041643,30]
[398344809,1765538125948,-500.0,0.00041643,30]
[398344810,1765538125957,-500.0,0.00041643,30]
[398344811,1765538125967,-500.0,0.00041643,30]
[398344812,1765538125976,-500.0,0.00041643,30]
[398344813,1765538125986,-578.6,0.00041643,30]
[398344814,1765538125996,-500.0,0.00041643,30]
[398344815,1765538126005,-809.01,0.00041643,30]
[398344816,1765538126015,-500.0,0.00041643,30]
[398344817,1765538126024,-719.27,0.00041643,30]
[398344818,1765538126034,-2620.34,0.00041643,30]
[398344819,1765538126044,-1731.68,0.00041643,30]
[398344820,1765538126053,-517.1,0.00041643,30]
[398344821,1765538126063,-2018.77,0.00041643,30]
[398344822,1765538126072,-822.61,0.00041643,30]
[398344823,1765538126082,-500.0,0.00041643,30]
[398344824,1765538126092,-511.8,0.00041643,30]
[398344825,1765538126102,-1245.76,0.00041643,30]
[398344826,1765538126112,-500.0,0.00041643,30]
[398344827,1765538126122,-1929.49,0.00041643,30]
[398344828,1765538126131,-629.76,0.00041643,30]
[398344829,1765538126140,-500.0,0.00041643,30]
[398344830,1765538126150,-2747.32,0.00041643,30]
[398344831,1765538126159,-504.87,0.00041643,30]
[398344832,1765538126168,-3082.74,0.00041643,30]
[398344833,1765538126177,-992.27,0.00041643,30]
[398344834,1765538126186,-1765.66,0.00041643,30]
[398344835,1765538126195,-810.69,0.00041643,30]
[398344836,1765538126204,-669.73,0.00041643,30]
[398344837,1765538126213,-1342.66,0.00041643,30]
[398344838,1765538126223,-682.03,0.00041643,30]
[398344839,1765538126234,-648.8,0.00041643,30]
[398344840,1765538126243,-1864.3,0.00041643,30]
[398344841,1765538126252,-500.0,0.00041643,30]
[398344842,1765538126261,-689.18,0.00041643,30]
[398344843,1765538126270,-598.31,0.00041643,30]
[398344844,1765538126279,-792.27,0.00041643,30]
[398344845,1765538126288,-2535.84,0.00041643,30]
[398344846,1765538126297,-500.0,0.00041643,30]
[398344847,1765538126306,-1454.84,0.00041643,30]
[398344848,1765538126316,-515.55313771,0.00041643,30]
[398344849,1765538126325,-836.48,0.00041643,30]
[398344850,1765538126337,-630.54,0.00041643,30]
[398344851,1765538126346,-542.7,0.00041643,30]
[398344852,1765538126355,-500.0,0.00041643,30]
[398344853,1765538126364,-625.15,0.00041643,30]
[398344854,1765538126373,-2978.69,0.00041643,30]
[398344855,1765538126382,-500.0,0.00041643,30]
[398344856,1765538126391,-566.99,0.00041643,30]
[398344857,1765538126400,-501.3,0.00041643,30]
[398344858,1765538126409,-1577.35,0.00041643,30]
[398344859,1765538126418,-716.61,0.00041643,30]
[398344860,1765538126427,-2248.13,0.00041643,30]
[398344861,1765538126439,-556.61,0.00041643,30]
[398344862,1765538126449,-500.0,0.00041643,30]
[398344863,1765538126458,-1673.77,0.00041643,30]
[398344864,1765538126468,-2331.84,0.00041643,30]
[398344865,1765538126478,-1028.79,0.00041643,30]
[398344866,1765538126487,-1527.47,0.00041643,30]
[398344867,1765538126497,-2147.02,0.00041643,30]
[398344868,1765538126507,-229.38915644,0.00041643,30]
[398344869,1765538126516,-500.28,0.00041643,30]
[398344870,1765538126525,-1715.19,0.00041643,30]
[398344871,1765538126535,-594.01,0.00041643,30]
[398344872,1765538126545,-1740.0,0.00041643,30]
[398344873,1765538126554,-567.29,0.00041643,30]
[398344874,1765538126564,-500.0,0.00041643,30]
[398344875,1765538126573,-633.47,0.00041643,30]
[398344876,1765538126583,-2330.09,0.00041643,30]
[398344877,1765538126593,-527.63,0.00041643,30]
[398344878,1765538126603,-272.55731166,0.00041643,30]
[398344879,1765538126612,-563.14,0.00041643,30]
[398344880,1765538126621,-1444.41,0.00041643,30]
[398344881,1765538126631,-588.23,0.00041643,30]
[398344882,1765538126640,-500.0,0.00041643,30]
[398344883,1765538126651,-500.0,0.00041643,30]
[398344884,1765538126661,-1747.95,0.00041643,30]
[398344885,1765538126670,-763.9,0.00041643,30]
[398344886,1765538126680,-818.9,0.00041643,30]
[398344887,1765538126690,-972.17,0.00041643,30]
[398344888,1765538126699,-573.6,0.00041643,30]
[398344889,1765538126709,-556.13,0.00041643,30]
[398344890,1765538126718,-666.96,0.00041643,30]
[398344891,1765538126728,-500.0,0.00041643,30]
[398344892,1765538126737,-500.0,0.00041643,30]
[398344893,1765538126748,-1283.05,0.00041643,30]
[398344894,1765538126757,-798.2,0.00041643,30]
[398344895,1765538126767,-6586.39,0.00041643,30]
[398344896,1765538126777,-989.92,0.00041643,30]
[398344897,1765538126787,-500.0,0.00041643,30]
[398344898,1765538126796,-502.68,0.00041643,30]
[398344899,1765538126806,-500.0,0.00041643,30]
[398344900,1765538126815,-533.31159081,0.00041643,30]
[398344901,1765538126825,-500.0,0.00041643,30]
[398344902,1765538126834,-500.0,0.00041643,30]
[398344903,1765538126843,-709.01,0.00041643,30]
[398344904,1765538126853,-500.0,0.00041643,30]
[398344905,1765538126862,-1180.74,0.00041643,30]
[398344906,1765538126875,-529.51,0.00041643,30]
[398344907,1765538126887,-589.52,0.00041643,30]
[398344908,1765538126896,-500.0,0.00041643,30]
[398344909,1765538126906,-500.0,0.00041643,30]
[398344910,1765538126915,-500.0,0.00041643,30]
[398344911,1765538126926,-509.99,0.00041643,30]
[398344912,1765538126936,-720.32,0.00041643,30]
[398344913,1765538126945,-500.0,0.00041643,30]
[398344914,1765538126956,-752.38,0.00041643,30]
[398344915,1765538126966,-500.0,0.00041643,30]
[398344916,1765538126976,-500.0,0.00041643,30]
[398344917,1765538126985,-500.0,0.00041643,30]
[398344918,1765538126994,-899.81,0.00041643,30]
[398344919,1765538127004,-634.12,0.00041643,30]
[398344920,1765538127014,-1738.8,0.00041643,30]
[398344921,1765538127024,-500.0,0.00041643,30]
[398344922,1765538127034,-622.13,0.00041643,30]
[398344923,1765538127044,-500.0,0.00041643,30]
[398344924,1765538127054,-10008.33,0.00041643,30]
[398344925,1765538127064,-1816.12,0.00041643,30]
[398344926,1765538127073,-1222.19,0.00041643,30]
[398344927,1765538127083,-500.0,0.00041643,30]
[398344928,1765538127093,-506.67,0.00041643,30]
[398344929,1765538127103,-614.15,0.00041643,30]
[398344930,1765538127113,-853.5,0.00041643,30]
[398344931,1765538127123,-867.61,0.00041643,30]
[398344932,1765538127133,-1730.62,0.00041643,30]
[398344933,1765538127142,-500.0,0.00041643,30]
[398344934,1765538127152,-261.37951871,0.00041643,30]
[398344935,1765538127162,-500.0,0.00041643,30]
[398344936,1765538127171,-642.79,0.00041643,30]
[398344937,1765538127181,-2044.69,0.00041643,30]
[398344938,1765538127191,-500.0,0.00041643,30]
[398344939,1765538127201,-5043.62,0.00041643,30]
[398344940,1765538127210,-1215.55,0.00041643,30]
[398344941,1765538127219,-500.0,0.00041643,30]
[398344942,1765538127229,-500.0,0.00041643,30]
[398344943,1765538127238,-500.0,0.00041643,30]
[398344944,1765538127247,-1545.49,0.00041643,30]
[398344945,1765538127256,-660.88,0.00041643,30]
[398344946,1765538127266,-1589.48,0.00041643,30]
[398344947,1765538127275,-628.02,0.00041643,30]
[398344948,1765538127284,-626.53,0.00041643,30]
[398344949,1765538127293,-602.06,0.00041643,30]
[398344950,1765538127303,-840.42,0.00041643,30]
[398344951,1765538127312,-699.47,0.00041643,30]
[398344952,1765538127322,-516.30814488,0.00041643,30]
[398344953,1765538127332,-905.19,0.00041643,30]
[398344954,1765538127348,-752.57,0.00041643,30]
[398344955,1765538127357,-2585.93,0.00041643,30]
[398344956,1765538127367,-789.34,0.00041643,30]
[398344957,1765538127376,-3440.78,0.00041643,30]
[398344958,1765538127390,-563.79,0.00041643,30]
[398344959,1765538127404,-500.0,0.00041643,30]
[398344960,1765538127413,-500.0,0.00041643,30]
[398344961,1765538127423,-571.37,0.00041643,30]
[398344962,1765538127433,-500.54,0.00041643,30]
[398344963,1765538127443,-500.0,0.00041643,30]
[398344964,1765538127452,-500.0,0.00041643,30]
[398344965,1765538127461,-509.62,0.00041643,30]
[398344966,1765538127470,-669.04,0.00041643,30]
[398344967,1765538127479,-3771.23,0.00041643,30]
[398344968,1765538127488,-813.18,0.00041643,30]
[398344969,1765538127497,-500.0,0.00041643,30]
[398344970,1765538127507,-1179.73,0.00041643,30]
[398344971,1765538127516,-500.0,0.00041643,30]
[398344972,1765538127525,-500.0,0.00041643,30]
[398344973,1765538127534,-1235.8,0.00041643,30]
[398344974,1765538127543,-1360.54,0.00041643,30]
[398344975,1765538127552,-604.12,0.00041643,30]
[398344976,1765538127562,-500.0,0.00041643,30]
[398344977,1765538127572,-500.0,0.00041643,30]
[398344978,1765538127581,-1586.65,0.00041643,30]
[398344979,1765538127591,-500.0,0.00041643,2]
[398344980,1765538127600,-500.0,0.00041643,30]
[398344981,1765538127610,-972.77,0.00041643,30]
[398344982,1765538127619,-459.32082551,0.00041643,30]
[398344983,1765538127629,-500.0,0.00041643,30]
[398344984,1765538127638,-500.0,0.00041643,30]
[398344985,1765538127648,-500.0,0.00041643,30]
[398344986,1765538127657,-4363.05,0.00041643,30]
[398344987,1765538127666,-731.82,0.00041643,30]
[398344988,1765538127676,-1418.58,0.00041643,30]
[398344989,1765538127685,-1625.02,0.00041643,30]
[398344990,1765538127695,-500.0,0.00041643,30]
[398344991,1765538127705,-500.0,0.00041643,30]
[398344992,1765538127714,-500.0,0.00041643,30]
[398344993,1765538127723,-500.0,0.00041643,30]
[398344994,1765538127733,-805.19,0.00041643,30]
[398344995,1765538127743,-500.0,0.00041643,30]
[398344996,1765538127752,-177.60838119,0.00041643,30]
[398344997,1765538127762,-1679.93,0.00041643,30]
[398344998,1765538127771,-11739.26,0.00041643,30]
[398344999,1765538127781,-510.13,0.00041643,30]
[398345000,1765538127959,-1704.19,0.00041643,30]
[398345001,1765538127969,-878.65,0.00041643,30]
[398345002,1765538127979,-619.07,0.00041643,30]
[398345003,1765538127988,-2892.66,0.00041643,30]
[398345004,1765538127998,-500.0,0.00041643,30]
[398345005,1765538128007,-500.0,0.00041643,30]
[398345006,1765538128016,-519.94378482,0.00041643,30]
[398345007,1765538128025,-1899.29,0.00041643,30]
[398345008,1765538128034,-500.0,0.00041643,30]
[398345009,1765538128044,-1019.28,0.00041643,30]
[398345010,1765538128053,-500.0,0.00041643,30]
[398345011,1765538128063,-1418.57,0.00041643,30]
[398345012,1765538128072,-500.0,0.00041643,30]
[398345013,1765538128082,-500.0,0.00041643,30]
[398345014,1765538128094,-736.31,0.00041643,30]
[398345015,1765538128104,-594.48662516,0.00041643,30]
[398345016,1765538128113,-803.38,0.00041643,30]
[398345017,1765538128123,-500.0,0.00041643,30]
[398345018,1765538128132,-522.15,0.00041643,30]
[398345019,1765538128141,-500.0,0.00041643,30]
[398345020,1765538128151,-500.0,0.00041643,30]
[398345021,1765538128160,-500.0,0.00041643,30]
[398345022,1765538128170,-1055.47,0.00041643,30]
[398345023,1765538128179,-694.39,0.00041643,30]
[398345024,1765538128188,-1480.3,0.00041643,30]
[398345025,1765538128198,-1529.14,0.00041643,30]
[398345026,1765538128207,-1887.69,0.00041643,30]
[398345027,1765538128217,-500.0,0.00041643,30]
[398345028,1765538128226,-1537.38,0.00041643,30]
[398345029,1765538128235,-814.49,0.00041643,30]
[398345030,1765538128244,-500.0,0.00041643,30]
[398345031,1765538128253,-500.0,0.00041643,30]
[398345032,1765538128262,-878.0,0.00041643,30]
[398345033,1765538128271,-542.52,0.00041643,30]
[398345034,1765538128280,-500.0,0.00041643,30]
[398345035,1765538128289,-1609.53,0.00041643,30]
[398345036,1765538128298,-1220.84,0.00041643,30]
[398345037,1765538128307,-1987.44,0.00041643,30]
[398345038,1765538128317,-500.0,0.00041643,30]
[398345039,1765538128326,-994.63,0.00041643,30]
[398345040,1765538128335,-1330.17,0.00041643,30]
[398345041,1765538128343,-1382.15,0.00041643,30]
[398345042,1765538128352,-500.0,0.00041643,30]
[398345043,1765538128362,-1159.62,0.00041643,30]
[398345044,1765538128371,-1136.89,0.00041643,30]
[398345045,1765538128381,-556.58,0.00041643,30]
[398345046,1765538128390,-9826.53,0.00041643,30]
[398345047,1765538128399,-500.0,0.00041643,30]
[398345048,1765538128409,-972.17,0.00041643,30]
[398345049,1765538128418,-500.0,0.00041643,30]
[398345050,1765538128427,-731.37,0.00041643,30]
[398345051,1765538128436,-1614.96,0.00041643,30]
[398345052,1765538128445,-500.0,0.00041643,30]
[398345053,1765538128454,-4738.09,0.00041643,30]
[398345054,1765538128463,-1327.17,0.00041643,30]
[398345055,1765538128472,-500.0,0.00041643,30]
[398345056,1765538128481,-3631.76,0.00041643,30]
[398345057,1765538128491,-500.0,0.00041643,30]
[398345058,1765538128499,-500.0,0.00041643,30]
[398345059,1765538128509,-500.0,0.00041643,30]
[398345060,1765538128518,-963.98,0.00041643,30]
[398345061,1765538128527,-634.95,0.00041643,30]
[398345062,1765538128536,-3329.8,0.00041643,30]
[398345063,1765538128545,-500.0,0.00041643,30]
[398345064,1765538128554,-1124.07,0.00041643,30]
[398345065,1765538128564,-500.0,0.00041643,30]
[398345066,1765538128573,-876.92,0.00041643,30]
[398345067,1765538128583,-500.0,0.00041643,30]
[398345068,1765538128592,-500.0,0.00041643,30]
[398345069,1765538128602,-500.0,0.00041643,30]
[398345070,1765538128611,-500.0,0.00041643,30]
[398345071,1765538128620,-500.0,0.00041643,30]
[398345072,1765538128629,-613.85,0.00041643,30]
[398345073,1765538128638,-705.22,0.00041643,30]
[398345074,1765538128647,-601.44,0.00041643,30]
[398345075,1765538128657,-680.86,0.00041643,30]
[398345076,1765538128665,-1255.36,0.00041643,30]
[398345077,1765538128674,-500.0,0.00041643,30]
[398345078,1765538128683,-500.0,0.00041643,30]
[398345079,1765538128692,-757.92,0.00041643,30]
[398345080,1765538128702,-500.0,0.00041643,30]
[398345081,1765538128711,-976.99,0.00041643,30]
[398345082,1765538128721,-681.9,0.00041643,30]
[398345083,1765538128730,-293.75979127,0.00041643,30]
[398345084,1765538128739,-766.68,0.00041643,30]
[398345085,1765538128748,-500.0,0.00041643,30]
[398345086,1765538128757,-500.0,0.00041643,30]
[398345087,1765538128767,-820.89,0.00041643,30]
[398345088,1765538128775,-1425.77,0.00041643,30]
[398345089,1765538128784,-2237.4,0.00041643,30]
[398345090,1765538128794,-673.29,0.00041643,30]
[398345091,1765538128803,-574.67,0.00041643,30]
[398345092,1765538128812,-500.0,0.00041643,30]
[398345093,1765538128821,-1020.61,0.00041643,30]
[398345094,1765538128830,-500.0,0.00041643,30]
[398345095,1765538128839,-558.5,0.00041643,30]
[398345096,1765538128848,-749.57,0.00041643,30]
[398345097,1765538128857,-500.0,0.00041643,30]
[398345098,1765538128866,-1224.23,0.00041643,30]
[398345099,1765538128875,-628.4,0.00041643,30]
[398345100,1765538128890,-500.0,0.00041643,30]
[398345101,1765538128900,-1487.24,0.00041643,30]
[398345102,1765538128909,-500.0,0.00041643,30]
[398345103,1765538128918,-500.0,0.00041643,30]
[398345104,1765538128930,-500.0,0.00041643,30]
[398345105,1765538128940,-643.83,0.00041643,30]
[398345106,1765538128949,-1267.76,0.00041643,30]
[398345107,1765538128960,-266.96882628,0.00041643,30]
[398345108,1765538128969,-554.79,0.00041643,30]
[398345109,1765538128979,-500.13,0.00041643,30]
[398345110,1765538128989,-543.72,0.00041643,30]
[398345111,1765538128998,-500.0,0.00041643,30]
[398345112,1765538129008,-1502.85,0.00041643,30]
[398345113,1765538129017,-901.37,0.00041643,30]